[Event "FIDE WYCC Open U14 2023"]
[Site "Montesilvano"]
[Date "2023.11.15"]
[Round "3.24"]
[White "Artemov, Andriy"]
[Black "Myagmarsuren, Evsuld"]
[Result "1-0"]
[ECO "D14"]
[WhiteElo "1779"]
[BlackElo "2150"]
[Annotator "ChessBase"]
[PlyCount "121"]
[EventDate "2023.11.13"]
[EventType "swiss"]
[EventCountry "ITA"]
[SourceTitle "playchess.com"]
[Source "ChessBase"]
[SourceQuality "1"]
[TimeControl "40/5400+30:1800+30"]

1. d4 {[%emt 0:00:03]} d5 {[%emt 0:00:07]} 2. c4 {[%emt 0:00:07]} c6 {[%emt 0:00:02]} 3. cxd5 {[%emt 0:00:40]} cxd5 {[%emt 0:00:06]} 4. Nc3 {[%emt 0:00:04]} Nf6 {[%emt 0:00:07]} 5. Nf3 {[%emt 0:00:07]} Nc6 {[%emt 0:00:05]} 6. Bf4 {[%emt 0:00:08]} Bf5 {[%emt 0:00:08]} 7. e3 {[%emt 0:00:07]} e6 {[%emt 0:00:53]} 8. Qb3 {[%emt 0:01:30]} Bb4 {[%emt 0:00:06]} 9. Bb5 {[%emt 0:00:34]} O-O {[%emt 0:02:46]} 10. Bxc6 {[%emt 0:00:07]} Bxc3+ {[%emt 0:00:08]} 11. Qxc3 {[%emt 0:00:03]} Rc8 {[%emt 0:00:42]} 12. Ne5 {[%emt 0:00:06]} Ne4 {[%emt 0:21:21]} 13. Qa3 {[%emt 0:00:34]} bxc6 {[%emt 0:04:35]} 14. Rc1 {[%emt 0:08:33]} f6 {[%emt 0:03:16]} 15. Nd3 {[%emt 0:05:35]} g5 {[%emt 0:04:57]} 16. Bg3 {[%emt 0:02:37]} Rf7 {[%emt 0:00:59]} 17. Nc5 {[%emt 0:01:38]} h5 {[%emt 0:06:05]} 18. Nxe4 {[%emt 0:00:28]} Bxe4 {[%emt 0:00:09]} 19. f3 {[%emt 0:00:34]} h4 {[%emt 0:01:21]} 20. Bxh4 {[%emt 0:03:19]} gxh4 {[%emt 0:01:58]} 21. fxe4 {[%emt 0:00:06]} dxe4 {[%emt 0:00:05]} 22. O-O {[%emt 0:00:13]} f5 {[%emt 0:01:30]} 23. Qb3 {[%emt 0:04:06]} Qe7 {[%emt 0:02:56]} 24. Rc5 {[%emt 0:00:47]} Kh8 {[%emt 0:02:57]} 25. Qc2 {[%emt 0:06:24]} Rg7 {[%emt 0:02:45]} 26. Qe2 {[%emt 0:18:09]} Qg5 {[%emt 0:11:19]} 27. Rf4 {[%emt 0:02:24]} Rcg8 {[%emt 0:04:30]} 28. Kh1 {[%emt 0:02:15]} Rc8 {[%emt 0:02:15]} 29. Qf2 {[%emt 0:01:59]} Rh7 {[%emt 0:00:13]} 30. Rxe4 {[%emt 0:01:56]} Qh5 {[%emt 0:05:08]} 31. Rxe6 {[%emt 0:05:17]} h3 {[%emt 0:01:28]} 32. Rc1 {[%emt 0:00:39]} hxg2+ {[%emt 0:00:29]} 33. Qxg2 {[%emt 0:00:01]} Rg8 {[%emt 0:00:46]} 34. Qf2 {[%emt 0:01:33]} f4 {[%emt 0:04:59]} 35. Re5 {[%emt 0:01:18]} Qh3 {[%emt 0:03:36]} 36. exf4 {[%emt 0:01:28]} Rhg7 {[%emt 0:01:04]} 37. Qe2 {[%emt 0:01:04]} Rg4 {[%emt 0:02:31]} 38. Rf5 {[%emt 0:05:22]} Rh4 {[%emt 0:10:03]} 39. Qe5+ {[%emt 0:04:57]} Rg7 {[%emt 0:00:58]} 40. Rf8+ {[%emt 0:00:00]} Kh7 {[%emt 0:00:00]} 41. Qf5+ {[%emt 0:01:31]} Qxf5 {[%emt 0:00:15]} 42. Rxf5 {[%emt 0:00:04]} Rd7 {[%emt 0:00:31]} 43. Rd1 {[%emt 0:03:57]} Kg6 {[%emt 0:00:15]} 44. Rc5 {[%emt 0:00:17]} Rxf4 {[%emt 0:00:20]} 45. Rxc6+ {[%emt 0:00:06]} Kf5 {[%emt 0:00:06]} 46. Rc5+ {[%emt 0:00:52]} Kf6 {[%emt 0:00:22]} 47. Rd2 {[%emt 0:11:48]} Rf1+ {[%emt 0:00:39]} 48. Kg2 {[%emt 0:00:08]} Rf4 {[%emt 0:00:04]} 49. Rf2 {[%emt 0:01:03]} Rdxd4 {[%emt 0:00:25]} 50. Rxf4+ {[%emt 0:00:08]} Rxf4 {[%emt 0:00:07]} 51. Ra5 {[%emt 0:00:23]} Rd4 {[%emt 0:00:09]} 52. b3 {[%emt 0:00:06]} Rd7 {[%emt 0:00:17]} 53. Kf3 {[%emt 0:00:07]} Rh7 {[%emt 0:00:24]} 54. Kg3 {[%emt 0:00:26]} Rg7+ {[%emt 0:00:10]} 55. Kf4 {[%emt 0:00:06]} Rc7 {[%emt 0:00:12]} 56. h4 {[%emt 0:00:12]} Kg6 {[%emt 0:00:17]} 57. h5+ {[%emt 0:00:11]} Kh6 {[%emt 0:00:05]} 58. Ke4 {[%emt 0:00:08]} Rd7 {[%emt 0:00:12]} 59. b4 {[%emt 0:00:17]} Rb7 {[%emt 0:00:44]} 60. a3 {[%emt 0:00:07]} Rd7 {[%emt 0:01:28]} 61. Rd5 1-0

[Event "FIDE WYCC Open U14 2023"]
[Site "Montesilvano"]
[Date "2023.11.15"]
[Round "3.25"]
[White "kiladze, Luka"]
[Black "Prokhorov, Aleksey"]
[Result "0-1"]
[ECO "E73"]
[WhiteElo "2145"]
[BlackElo "1869"]
[Annotator "NA"]
[PlyCount "100"]
[EventDate "2023.11.13"]
[EventType "swiss"]
[EventCountry "ITA"]
[SourceTitle "playchess.com"]
[Source "ChessBase"]
[SourceQuality "1"]
[TimeControl "40/5400+30:1800+30"]

1. d4 {[%emt 0:00:03]} Nf6 {[%emt 0:01:04]} 2. c4 {[%emt 0:00:04]} g6 {[%emt 0:00:59]} 3. Nc3 {[%emt 0:00:04]} Bg7 {[%emt 0:01:10]} 4. e4 {[%emt 0:00:05]} d6 {[%emt 0:00:55]} 5. Be2 {[%emt 0:01:14]} O-O {[%emt 0:01:48]} 6. Be3 {[%emt 0:00:05]} c5 {[%emt 0:01:17]} 7. d5 {[%emt 0:00:11]} e6 {[%emt 0:00:51]} 8. Nf3 {[%emt 0:00:11]} exd5 {[%emt 0:00:49]} 9. cxd5 {[%emt 0:00:03]} Bg4 {[%emt 0:01:00]} 10. Nd2 {[%emt 0:00:19]} Bxe2 {[%emt 0:01:03]} 11. Qxe2 {[%emt 0:00:07]} Nbd7 {[%emt 0:04:12]} 12. O-O {[%emt 0:01:13]} Ne8 {[%emt 0:02:14]} 13. Rad1 {[%emt 0:04:24]} Qe7 {[%emt 0:02:12]} 14. Rfe1 {[%emt 0:02:09]} Nc7 {[%emt 0:01:38]} 15. a4 {[%emt 0:00:50]} a6 {[%emt 0:01:04]} 16. a5 {[%emt 0:00:56]} b6 {[%emt 0:03:45]} 17. axb6 {[%emt 0:01:47]} Nxb6 {[%emt 0:00:09]} 18. f3 {[%emt 0:08:27]} Rfb8 {[%emt 0:04:53]} 19. Ra1 {[%emt 0:07:20]} Ra7 {[%emt 0:16:29]} 20. Ra2 {[%emt 0:05:53]} Rab7 {[%emt 0:00:44]} 21. Rc1 {[%emt 0:03:58]} Bd4 {[%emt 0:07:03]} 22. Nf1 {[%emt 0:13:52]} Nd7 {[%emt 0:18:25]} 23. Nd1 {[%emt 0:10:45]} Bg7 {[%emt 0:03:39]} 24. Rc2 {[%emt 0:05:10]} Rb4 {[%emt 0:04:18]} 25. Nd2 {[%emt 0:08:08]} f5 {[%emt 0:02:17]} 26. Nc3 {[%emt 0:09:00]} Bd4 {[%emt 0:01:57]} 27. Bf2 {[%emt 0:02:48]} fxe4 {[%emt 0:02:14]} 28. Ndxe4 {[%emt 0:01:08]} Nb6 {[%emt 0:06:14]} 29. g3 {[%emt 0:03:44]} Ra8 {[%emt 0:01:37]} 30. h4 {[%emt 0:04:31]} a5 {[%emt 0:00:41]} 31. Rd2 {[%emt 0:02:14]} Ncxd5 {[%emt 0:00:45]} 32. Bxd4 {[%emt 0:00:21]} cxd4 {[%emt 0:00:40]} 33. Nb5 {[%emt 0:00:22]} Qe5 {[%emt 0:01:56]} 34. Nbxd6 {[%emt 0:00:12]} Ne3 {[%emt 0:00:28]} 35. Kh2 {[%emt 0:03:50]} a4 {[%emt 0:02:15]} 36. Rd3 {[%emt 0:00:43]} Nbd5 {[%emt 0:00:45]} 37. f4 {[%emt 0:01:16]} Qe6 {[%emt 0:00:10]} 38. Raa3 {[%emt 0:00:16]} Rd8 {[%emt 0:00:28]} 39. Kg1 {[%emt 0:01:24]} Rxd6 {[%emt 0:00:25]} 40. Nxd6 {[%emt 0:00:00]} Qxd6 {[%emt 0:00:00]} 41. b3 {[%emt 0:00:43]} Qc5 {[%emt 0:01:18]} 42. Rxa4 {[%emt 0:01:34]} Rxa4 {[%emt 0:04:29]} 43. bxa4 {[%emt 0:00:01]} Qc1+ {[%emt 0:00:09]} 44. Kf2 {[%emt 0:01:08]} Nc3 {[%emt 0:00:22]} 45. Rxc3 {[%emt 0:00:11]} Qxc3 {[%emt 0:00:09]} 46. Qa2+ {[%emt 0:00:49]} Kg7 {[%emt 0:00:22]} 47. a5 {[%emt 0:00:18]} Qc6 {[%emt 0:02:35]} 48. Qe2 {[%emt 0:01:15]} Qh1 {[%emt 0:00:39]} 49. Qd3 {[%emt 0:01:23]} Qg2+ {[%emt 0:00:10]} 50. Ke1 {[%emt 0:00:06]} Qg1+ {[%emt 0:00:04]} 0-1

[Event "FIDE WYCC Open U14 2023"]
[Site "Montesilvano"]
[Date "2023.11.15"]
[Round "3.26"]
[White "Yessengali, Adizhan"]
[Black "Hobson, Kenneth"]
[Result "0-1"]
[ECO "A21"]
[WhiteElo "1725"]
[BlackElo "2142"]
[Annotator "NA"]
[PlyCount "110"]
[EventDate "2023.11.13"]
[EventType "swiss"]
[EventCountry "ITA"]
[SourceTitle "playchess.com"]
[Source "ChessBase"]
[SourceQuality "1"]
[TimeControl "40/5400+30:1800+30"]

1. c4 {[%emt 0:00:23]} e5 {[%emt 0:01:09]} 2. Nc3 {[%emt 0:00:52]} Bb4 {[%emt 0:00:06]} 3. Nd5 {[%emt 0:00:31]} Be7 {[%emt 0:00:16]} 4. e3 {[%emt 0:00:48]} Nf6 {[%emt 0:01:43]} 5. Nxe7 {[%emt 0:02:39]} Qxe7 {[%emt 0:00:06]} 6. Ne2 {[%emt 0:00:17]} O-O {[%emt 0:10:04]} 7. Ng3 {[%emt 0:01:05]} Nc6 {[%emt 0:01:38]} 8. Be2 {[%emt 0:00:54]} d5 {[%emt 0:03:30]} 9. cxd5 {[%emt 0:01:42]} Nxd5 {[%emt 0:00:12]} 10. O-O {[%emt 0:00:18]} Be6 {[%emt 0:01:38]} 11. a3 {[%emt 0:05:19]} a5 {[%emt 0:01:47]} 12. Bf3 {[%emt 0:00:59]} Rad8 {[%emt 0:04:06]} 13. Qc2 {[%emt 0:00:28]} f5 {[%emt 0:02:43]} 14. d3 {[%emt 0:02:44]} Nb6 {[%emt 0:10:33]} 15. Bxc6 {[%emt 0:05:59]} bxc6 {[%emt 0:00:06]} 16. Bd2 {[%emt 0:00:04]} Qd7 {[%emt 0:18:19]} 17. Bxa5 {[%emt 0:06:02]} f4 {[%emt 0:03:18]} 18. exf4 {[%emt 0:00:13]} exf4 {[%emt 0:01:03]} 19. Ne4 {[%emt 0:00:05]} f3 {[%emt 0:07:15]} 20. Bb4 {[%emt 0:06:16]} Rfe8 {[%emt 0:01:27]} 21. Ng5 {[%emt 0:08:51]} Bd5 {[%emt 0:03:00]} 22. d4 {[%emt 0:02:30]} g6 {[%emt 0:01:42]} 23. g3 {[%emt 0:00:16]} Re2 {[%emt 0:01:58]} 24. Qd3 {[%emt 0:01:02]} Qg4 {[%emt 0:01:21]} 25. h4 {[%emt 0:01:19]} Rde8 {[%emt 0:04:48]} 26. Rae1 {[%emt 0:00:57]} Kg7 {[%emt 0:01:29]} 27. Kh2 {[%emt 0:00:05]} Nc4 {[%emt 0:01:31]} 28. b3 {[%emt 0:06:59]} Ne3 {[%emt 0:00:49]} 29. Qc3 {[%emt 0:02:31]} Nxf1+ {[%emt 0:01:53]} 30. Rxf1 {[%emt 0:00:01]} h6 {[%emt 0:04:01]} 31. Nh3 {[%emt 0:00:05]} g5 {[%emt 0:00:09]} 32. Rg1 {[%emt 0:00:24]} Kf7 {[%emt 0:01:59]} 33. Qd3 {[%emt 0:00:19]} R8e4 {[%emt 0:00:48]} 34. hxg5 {[%emt 0:00:56]} hxg5 {[%emt 0:03:32]} 35. Rf1 {[%emt 0:00:08]} Kg8 {[%emt 0:02:39]} 36. Bd2 {[%emt 0:01:19]} Qh5 {[%emt 0:01:35]} 37. Bxg5 {[%emt 0:00:27]} Be6 {[%emt 0:00:23]} 38. Bh4 {[%emt 0:00:02]} Qf5 {[%emt 0:01:06]} 39. g4 {[%emt 0:00:07]} Qh7 {[%emt 0:02:39]} 40. Qxf3 {[%emt 0:00:00]} Qxh4 {[%emt 0:00:00]} 41. Rg1 {[%emt 0:01:06]} R4e3 {[%emt 0:02:36]} 42. Qxe3 {[%emt 0:00:29]} Rxe3 {[%emt 0:00:47]} 43. fxe3 {[%emt 0:00:01]} Bxg4 {[%emt 0:00:24]} 44. Rg3 {[%emt 0:00:02]} Kf8 {[%emt 0:00:26]} 45. Kg2 {[%emt 0:01:10]} Bxh3+ {[%emt 0:00:12]} 46. Rxh3 {[%emt 0:00:02]} Qg4+ {[%emt 0:00:44]} 47. Rg3 {[%emt 0:00:02]} Qe2+ {[%emt 0:00:06]} 48. Kh3 {[%emt 0:00:02]} Qh5+ {[%emt 0:00:08]} 49. Kg2 {[%emt 0:00:04]} Qe2+ {[%emt 0:00:09]} 50. Kh3 {[%emt 0:00:02]} Qb2 {[%emt 0:00:36]} 51. Rg5 {[%emt 0:00:56]} Qxa3 {[%emt 0:01:40]} 52. Kg3 {[%emt 0:00:10]} Qxb3 {[%emt 0:00:23]} 53. Kf4 {[%emt 0:00:03]} Ke7 {[%emt 0:01:17]} 54. Rg7+ {[%emt 0:00:33]} Kf6 {[%emt 0:00:36]} 55. Rxc7 {[%emt 0:00:05]} Qb8 {[%emt 0:00:05]} 0-1

[Event "FIDE WYCC Open U14 2023"]
[Site "Montesilvano"]
[Date "2023.11.15"]
[Round "3.27"]
[White "Bazilius, Augustinas"]
[Black "Yun, Hungi"]
[Result "1/2-1/2"]
[ECO "E10"]
[WhiteElo "2138"]
[BlackElo "1884"]
[Annotator "NA"]
[PlyCount "66"]
[EventDate "2023.11.13"]
[EventType "swiss"]
[EventCountry "ITA"]
[SourceTitle "playchess.com"]
[Source "ChessBase"]
[SourceQuality "1"]
[TimeControl "40/5400+30:1800+30"]

1. d4 {[%emt 0:00:02]} Nf6 {[%emt 0:00:10]} 2. c4 {[%emt 0:00:02]} e6 {[%emt 0:00:10]} 3. Nf3 {[%emt 0:00:05]} d5 4. g3 {[%emt 0:00:13]} Bb4+ {[%emt 0:00:37]} 5. Bd2 {[%emt 0:00:09]} Be7 {[%emt 0:00:04]} 6. Bg2 {[%emt 0:00:11]} O-O {[%emt 0:00:06]} 7. O-O {[%emt 0:00:15]} c6 {[%emt 0:00:12]} 8. Qc2 {[%emt 0:00:05]} Nbd7 {[%emt 0:00:05]} 9. Rd1 {[%emt 0:00:30]} b6 {[%emt 0:00:18]} 10. Bf4 {[%emt 0:00:25]} Ba6 {[%emt 0:00:07]} 11. Ne5 {[%emt 0:00:15]} Rc8 {[%emt 0:00:49]} 12. cxd5 {[%emt 0:00:04]} Nxd5 {[%emt 0:03:26]} 13. Nxc6 {[%emt 0:34:08]} Nb4 {[%emt 0:18:13]} 14. Qa4 {[%emt 0:00:54]} Nxc6 {[%emt 0:02:44]} 15. Bxc6 {[%emt 0:01:13]} Bxe2 {[%emt 0:02:45]} 16. Re1 {[%emt 0:15:08]} b5 {[%emt 0:01:31]} 17. Qxa7 {[%emt 0:02:55]} Rxc6 {[%emt 0:00:56]} 18. Rxe2 {[%emt 0:00:06]} g5 {[%emt 0:37:07]} 19. Bd2 {[%emt 0:06:11]} Qc8 {[%emt 0:03:45]} 20. d5 {[%emt 0:03:05]} Bc5 {[%emt 0:03:58]} 21. Qa5 {[%emt 0:00:32]} exd5 {[%emt 0:00:08]} 22. Bxg5 {[%emt 0:01:36]} Re8 {[%emt 0:01:36]} 23. Nc3 {[%emt 0:10:55]} Ne5 {[%emt 0:05:25]} 24. Bf4 {[%emt 0:10:12]} Nf3+ {[%emt 0:02:06]} 25. Kg2 {[%emt 0:00:18]} Rxe2 {[%emt 0:00:36]} 26. Nxe2 {[%emt 0:00:01]} Qg4 {[%emt 0:02:43]} 27. Qd8+ {[%emt 0:00:21]} Kg7 {[%emt 0:02:29]} 28. h3 {[%emt 0:00:50]} Qf5 {[%emt 0:01:27]} 29. Nc3 {[%emt 0:02:07]} Qc2 {[%emt 0:04:48]} 30. Rf1 {[%emt 0:02:57]} Ne1+ {[%emt 0:00:43]} 31. Kg1 {[%emt 0:02:44]} Nf3+ {[%emt 0:01:08]} 32. Kg2 {[%emt 0:00:05]} Ne1+ {[%emt 0:00:10]} 33. Kg1 {[%emt 0:00:19]} Nf3+ {[%emt 0:00:54]} 1/2-1/2

[Event "FIDE WYCC Open U14 2023"]
[Site "Montesilvano"]
[Date "2023.11.15"]
[Round "3.28"]
[White "Malinowsky, Levi"]
[Black "Lira, Suan Bruno Fernandes"]
[Result "0-1"]
[ECO "B12"]
[WhiteElo "2135"]
[BlackElo "1858"]
[Annotator "NA"]
[PlyCount "114"]
[EventDate "2023.11.13"]
[EventType "swiss"]
[EventCountry "ITA"]
[SourceTitle "playchess.com"]
[Source "ChessBase"]
[SourceQuality "1"]
[TimeControl "40/5400+30:1800+30"]

1. e4 {[%emt 0:00:03]} c6 {[%emt 0:00:05]} 2. d4 {[%emt 0:00:11]} d5 {[%emt 0:00:07]} 3. e5 {[%emt 0:00:06]} Bf5 {[%emt 0:00:09]} 4. h4 {[%emt 0:00:09]} h5 {[%emt 0:00:17]} 5. Bg5 {[%emt 0:00:44]} Qb6 {[%emt 0:00:14]} 6. Bd3 {[%emt 0:00:54]} Bxd3 {[%emt 0:00:14]} 7. Qxd3 {[%emt 0:00:11]} e6 {[%emt 0:00:09]} 8. Nd2 {[%emt 0:01:31]} c5 {[%emt 0:01:08]} 9. c4 {[%emt 0:02:28]} Qxb2 {[%emt 0:01:24]} 10. Rd1 {[%emt 0:02:06]} Nc6 {[%emt 0:03:06]} 11. Ne2 {[%emt 0:02:05]} Nb4 {[%emt 0:06:20]} 12. Qf3 {[%emt 0:02:22]} Nc2+ {[%emt 0:03:26]} 13. Kf1 {[%emt 0:00:02]} Nxd4 {[%emt 0:01:48]} 14. Nxd4 {[%emt 0:01:01]} Qxd4 {[%emt 0:07:01]} 15. cxd5 {[%emt 0:01:45]} Qxd5 {[%emt 0:04:19]} 16. Ne4 {[%emt 0:03:17]} Qxe5 {[%emt 0:06:07]} 17. Rh3 {[%emt 0:28:38]} Qc7 {[%emt 0:16:55]} 18. Qc3 {[%emt 0:12:25]} f6 {[%emt 0:08:45]} 19. Re3 {[%emt 0:15:59]} Be7 {[%emt 0:10:06]} 20. Red3 {[%emt 0:04:35]} Rd8 {[%emt 0:12:10]} 21. Rxd8+ {[%emt 0:00:14]} Bxd8 {[%emt 0:00:04]} 22. Nd6+ {[%emt 0:01:15]} Kf8 {[%emt 0:01:05]} 23. Bf4 {[%emt 0:01:53]} e5 {[%emt 0:03:38]} 24. Be3 {[%emt 0:01:47]} Be7 {[%emt 0:01:01]} 25. Qc4 {[%emt 0:02:31]} Bxd6 {[%emt 0:01:25]} 26. Rxd6 {[%emt 0:00:08]} Ne7 {[%emt 0:05:47]} 27. Qe6 {[%emt 0:01:57]} Ke8 {[%emt 0:00:34]} 28. f4 {[%emt 0:06:56]} Rf8 {[%emt 0:01:14]} 29. Kg1 {[%emt 0:01:10]} Qc8 {[%emt 0:02:16]} 30. fxe5 {[%emt 0:01:04]} Qxe6 {[%emt 0:00:28]} 31. Rxe6 {[%emt 0:00:03]} b6 {[%emt 0:00:11]} 32. Bf4 {[%emt 0:01:40]} Kf7 {[%emt 0:01:25]} 33. Rd6 {[%emt 0:00:08]} fxe5 {[%emt 0:01:14]} 34. Bxe5 {[%emt 0:00:08]} Nf5 {[%emt 0:00:03]} 35. Rc6 {[%emt 0:00:28]} Re8 {[%emt 0:00:24]} 36. Bc3 {[%emt 0:01:34]} Re7 {[%emt 0:01:02]} 37. a4 {[%emt 0:00:15]} Rd7 {[%emt 0:00:15]} 38. Rc8 {[%emt 0:01:12]} Nxh4 {[%emt 0:01:27]} 39. a5 {[%emt 0:00:18]} Nf5 {[%emt 0:00:42]} 40. Be5 {[%emt 0:00:00]} Ne7 {[%emt 0:00:00]} 41. Rh8 {[%emt 0:01:37]} Nc6 {[%emt 0:01:04]} 42. axb6 {[%emt 0:00:36]} Nxe5 {[%emt 0:00:42]} 43. Rxh5 {[%emt 0:00:08]} Ke6 {[%emt 0:00:42]} 44. bxa7 {[%emt 0:00:07]} Rxa7 {[%emt 0:00:07]} 45. g4 {[%emt 0:00:17]} Ra2 {[%emt 0:00:24]} 46. Rh7 {[%emt 0:00:28]} g6 {[%emt 0:00:20]} 47. g5 {[%emt 0:00:13]} Nf3+ {[%emt 0:00:30]} 48. Kf1 {[%emt 0:00:08]} Nxg5 {[%emt 0:00:07]} 49. Rh4 {[%emt 0:00:10]} Kf5 {[%emt 0:00:47]} 50. Rh8 {[%emt 0:00:14]} Ne6 {[%emt 0:01:52]} 51. Kg1 {[%emt 0:00:11]} Ra7 {[%emt 0:00:32]} 52. Kf2 {[%emt 0:00:09]} Rc7 {[%emt 0:00:08]} 53. Ke1 {[%emt 0:00:14]} c4 {[%emt 0:00:04]} 54. Kd1 {[%emt 0:00:03]} c3 {[%emt 0:00:07]} 55. Rh4 {[%emt 0:00:06]} g5 {[%emt 0:00:10]} 56. Rh2 {[%emt 0:00:06]} Nd4 {[%emt 0:00:28]} 57. Kc1 {[%emt 0:00:05]} c2 {[%emt 0:01:04]} 0-1

[Event "FIDE WYCC Open U14 2023"]
[Site "Montesilvano"]
[Date "2023.11.15"]
[Round "3.29"]
[White "Tao, Sihan"]
[Black "Zaragoza Alanis, Miguel Arnulfo"]
[Result "1/2-1/2"]
[ECO "C85"]
[WhiteElo "2122"]
[BlackElo "1838"]
[Annotator "NA"]
[PlyCount "109"]
[EventDate "2023.11.13"]
[EventType "swiss"]
[EventCountry "ITA"]
[SourceTitle "playchess.com"]
[Source "ChessBase"]
[SourceQuality "1"]
[TimeControl "40/5400+30:1800+30"]

1. e4 {[%emt 0:00:02]} e5 {[%emt 0:00:01]} 2. Nf3 {[%emt 0:00:12]} Nc6 {[%emt 0:00:04]} 3. Bb5 {[%emt 0:00:10]} a6 {[%emt 0:00:05]} 4. Ba4 {[%emt 0:00:06]} Nf6 {[%emt 0:00:09]} 5. O-O {[%emt 0:00:07]} Be7 {[%emt 0:01:30]} 6. Bxc6 {[%emt 0:07:02]} dxc6 {[%emt 0:00:27]} 7. Re1 {[%emt 0:00:18]} Bg4 {[%emt 0:06:02]} 8. h3 {[%emt 0:00:13]} Bxf3 {[%emt 0:01:04]} 9. Qxf3 {[%emt 0:00:38]} Bc5 {[%emt 0:06:06]} 10. d3 {[%emt 0:02:37]} h6 {[%emt 0:00:46]} 11. Be3 {[%emt 0:02:29]} Nd7 {[%emt 0:02:02]} 12. Nd2 {[%emt 0:03:36]} Bxe3 {[%emt 0:03:53]} 13. Qxe3 {[%emt 0:01:19]} Nf8 {[%emt 0:00:17]} 14. Nf3 {[%emt 0:00:44]} Qf6 {[%emt 0:10:44]} 15. d4 {[%emt 0:01:13]} Ng6 {[%emt 0:01:22]} 16. Rad1 {[%emt 0:01:34]} O-O {[%emt 0:02:40]} 17. Nxe5 {[%emt 0:00:22]} Nxe5 {[%emt 0:00:02]} 18. dxe5 {[%emt 0:00:02]} Qxe5 {[%emt 0:00:01]} 19. Qd4 {[%emt 0:00:01]} Qe6 {[%emt 0:01:55]} 20. b3 {[%emt 0:00:58]} Rad8 {[%emt 0:00:25]} 21. Qe3 {[%emt 0:13:30]} Qe5 {[%emt 0:06:25]} 22. c3 {[%emt 0:01:05]} Rxd1 {[%emt 0:15:49]} 23. Rxd1 {[%emt 0:00:04]} Re8 {[%emt 0:00:08]} 24. g3 {[%emt 0:20:34]} f5 {[%emt 0:07:05]} 25. Qd4 {[%emt 0:24:35]} Qxd4 {[%emt 0:03:15]} 26. Rxd4 {[%emt 0:00:06]} Rxe4 {[%emt 0:00:06]} 27. Rd7 {[%emt 0:01:03]} Kf8 {[%emt 0:00:20]} 28. Rxc7 {[%emt 0:00:27]} Re7 {[%emt 0:00:01]} 29. Rc8+ {[%emt 0:00:22]} Re8 {[%emt 0:03:49]} 30. Rxe8+ {[%emt 0:00:06]} Kxe8 {[%emt 0:00:12]} 31. h4 {[%emt 0:02:06]} g5 {[%emt 0:01:33]} 32. hxg5 {[%emt 0:01:40]} hxg5 {[%emt 0:00:02]} 33. Kf1 {[%emt 0:00:36]} Ke7 {[%emt 0:02:50]} 34. Ke2 {[%emt 0:00:18]} Ke6 {[%emt 0:04:03]} 35. Kd3 {[%emt 0:00:17]} Ke5 {[%emt 0:03:40]} 36. a4 {[%emt 0:01:23]} a5 {[%emt 0:02:48]} 37. b4 {[%emt 0:01:25]} axb4 {[%emt 0:08:49]} 38. cxb4 {[%emt 0:00:02]} Kd5 {[%emt 0:00:10]} 39. a5 {[%emt 0:00:21]} g4 {[%emt 0:04:08]} 40. Kc3 {[%emt 0:00:00]} Ke4 {[%emt 0:00:00]} 41. Kc4 {[%emt 0:02:10]} Kf3 {[%emt 0:00:32]} 42. Kc5 {[%emt 0:00:06]} Kxf2 {[%emt 0:00:08]} 43. Kb6 {[%emt 0:00:03]} f4 {[%emt 0:04:45]} 44. Kxb7 {[%emt 0:02:19]} fxg3 {[%emt 0:00:48]} 45. a6 {[%emt 0:00:05]} g2 {[%emt 0:00:39]} 46. a7 {[%emt 0:00:04]} g1=Q {[%emt 0:00:11]} 47. a8=Q {[%emt 0:00:05]} g3 {[%emt 0:01:17]} 48. Qa2+ {[%emt 0:00:50]} Kf3 {[%emt 0:00:37]} 49. b5 {[%emt 0:10:08]} Qe3 {[%emt 0:08:34]} 50. bxc6 {[%emt 0:01:10]} g2 {[%emt 0:00:32]} 51. Qxg2+ {[%emt 0:00:46]} Kxg2 {[%emt 0:00:06]} 52. c7 {[%emt 0:00:03]} Qb3+ {[%emt 0:00:09]} 53. Ka8 {[%emt 0:00:13]} Qd5+ {[%emt 0:00:26]} 54. Kb8 {[%emt 0:00:07]} Qb5+ {[%emt 0:00:04]} 55. Ka7 {[%emt 0:00:06]} 1/2-1/2

[Event "FIDE WYCC Open U14 2023"]
[Site "Montesilvano"]
[Date "2023.11.15"]
[Round "3.30"]
[White "Tabuenca Mendataurigoitia, Daniel"]
[Black "Kabylbek, Yedil"]
[Result "1-0"]
[ECO "C47"]
[WhiteElo "2383"]
[BlackElo "1710"]
[Annotator "RC"]
[PlyCount "79"]
[EventDate "2023.11.13"]
[EventType "swiss"]
[EventCountry "ITA"]
[SourceTitle "playchess.com"]
[Source "ChessBase"]
[SourceQuality "1"]
[TimeControl "40/5400+30:1800+30"]

1. e4 {[%emt 0:00:02]} e5 {[%emt 0:00:06]} 2. Nf3 {[%emt 0:00:28]} Nc6 {[%emt 0:00:08]} 3. Nc3 {[%emt 0:01:11]} Nf6 {[%emt 0:00:10]} 4. h3 {[%emt 0:00:07]} Bb4 {[%emt 0:01:50]} 5. Nd5 {[%emt 0:01:15]} Bc5 {[%emt 0:00:05]} 6. c3 {[%emt 0:06:05]} O-O {[%emt 0:18:17]} 7. d4 {[%emt 0:11:02]} exd4 {[%emt 0:05:37]} 8. cxd4 {[%emt 0:02:26]} Nxd5 {[%emt 0:01:08]} 9. dxc5 {[%emt 0:04:04]} Nf6 {[%emt 0:00:12]} 10. Bd3 {[%emt 0:02:54]} Qe7 {[%emt 0:04:11]} 11. O-O {[%emt 0:05:56]} Qxc5 {[%emt 0:03:46]} 12. b4 {[%emt 0:20:52]} Qe7 {[%emt 0:06:10]} 13. Bb2 {[%emt 0:03:17]} d6 {[%emt 0:03:03]} 14. b5 {[%emt 0:01:01]} Ne5 {[%emt 0:01:14]} 15. Nxe5 {[%emt 0:01:49]} dxe5 {[%emt 0:00:01]} 16. Qc2 {[%emt 0:00:59]} Ne8 {[%emt 0:07:31]} 17. f4 {[%emt 0:02:11]} exf4 {[%emt 0:04:50]} 18. e5 {[%emt 0:01:39]} f5 {[%emt 0:06:17]} 19. Qc3 {[%emt 0:04:33]} Be6 {[%emt 0:10:07]} 20. Ba3 {[%emt 0:00:17]} Qg5 {[%emt 0:00:19]} 21. Bxf8 {[%emt 0:00:14]} Kxf8 {[%emt 0:00:02]} 22. Qb4+ {[%emt 0:00:25]} Kg8 {[%emt 0:00:21]} 23. Qxf4 {[%emt 0:00:08]} Qxf4 {[%emt 0:00:07]} 24. Rxf4 {[%emt 0:00:05]} g6 {[%emt 0:00:04]} 25. Rd4 {[%emt 0:00:23]} Kf7 {[%emt 0:00:45]} 26. Be2 {[%emt 0:01:36]} c5 {[%emt 0:02:54]} 27. bxc6 {[%emt 0:02:28]} bxc6 {[%emt 0:00:04]} 28. Bc4 {[%emt 0:01:58]} Ke7 {[%emt 0:00:15]} 29. Rb1 {[%emt 0:01:29]} Rc8 {[%emt 0:01:01]} 30. Rb7+ {[%emt 0:00:31]} Rc7 {[%emt 0:00:02]} 31. Rxc7+ {[%emt 0:00:14]} Nxc7 {[%emt 0:00:04]} 32. Bxe6 {[%emt 0:00:05]} Kxe6 {[%emt 0:00:16]} 33. Rd6+ {[%emt 0:00:03]} Kxe5 {[%emt 0:00:04]} 34. Rxc6 {[%emt 0:00:04]} Nd5 {[%emt 0:01:12]} 35. Ra6 {[%emt 0:00:05]} g5 {[%emt 0:00:19]} 36. Rxa7 {[%emt 0:00:07]} h5 {[%emt 0:00:03]} 37. a4 {[%emt 0:00:11]} g4 {[%emt 0:00:23]} 38. h4 {[%emt 0:00:17]} Kd6 {[%emt 0:01:09]} 39. Rh7 {[%emt 0:00:08]} Nf4 {[%emt 0:00:18]} 40. g3 {[%emt 0:00:00]} 1-0